fUSD/lending_fUSD_20240314
["ID","MTS","AMOUNT","RATE_DAILY","PERIOD"]
[318941104,1710457852986,-2047.24157901,0.00019,2]
[318941105,1710457852997,-1115.28590621,0.00019,2]
[318941106,1710457853273,-1051.97760552,0.00018999,2]
[318941107,1710457853284,-276.6998361,0.00018999,2]
[318941108,1710457853293,-9.41822555,0.00018999,2]
[318941109,1710457853315,-521.86735862,0.00018999,2]
[318941110,1710457853326,-180.91648567,0.00018999,2]
[318941111,1710457853338,-215.16473698,0.00018999,2]
[318941112,1710457853348,-2815.7289805,0.00018999,2]
[318941113,1710457853358,-4721.90628243,0.00019,2]
[318941114,1710457853369,-13697.41567928,0.00019,2]
[318941115,1710457853385,-641.93550515,0.00019,2]
[318941116,1710457853397,-5695.63379946,0.00019,2]
[318941117,1710457855502,543.11960588,0.00016149,2]
[318941118,1710457862331,1901.00073104,0.00015984,2]
[318941119,1710457880507,155.0,0.00015984,2]
[318941120,1710457906094,150.0,0.00018,2]
[318941121,1710457937226,178.2,0.00018,2]
[318941125,1710458030850,641.17,0.00016196,2]
[318941126,1710458056590,150.0,0.00018,2]
[318941127,1710458109235,1076.51404521,0.00017993,2]
[318941128,1710458175030,9529.601702,0.00023,30]
[318941129,1710458175049,10000.0,0.00023,30]
[318941130,1710458175068,6912.759999,0.00023,30]
[318941131,1710458197291,5013.97180694,0.000137,2]
[318941132,1710458224157,3898.8545269,0.00017987,2]
[318941133,1710458225167,3898.85452688,0.00017988,2]
[318941134,1710458289454,1318.45049339,0.00017988,2]
[318941135,1710458298798,182.03602319,0.00017983,2]
[318941136,1710458304048,10984.58,0.00017739,2]
[318941142,1710458392213,250.0,0.00017825,2]
[318941143,1710458485136,609.11,0.00015763,2]
[318941144,1710458510842,491.13,0.00017587,2]
[318941145,1710458531399,1468.33422092,0.00017223,2]
[318941146,1710458560327,178.2,0.00018,2]
[318941147,1710458620547,102700.0,0.00017951,2]
[318941149,1710458687155,173.3,0.00017687,2]
[318941150,1710458709226,168.19,0.00017687,2]
[318941151,1710458762792,8531.67,0.00017687,2]
[318941153,1710458807489,543.11960588,0.00015553,2]
[318941154,1710458814665,240.0,0.00017776,2]
[318941155,1710458816321,1901.00073104,0.00017687,2]
[318941156,1710458831147,155.0,0.00017687,2]
[318941157,1710458844060,450.85336691,0.00017687,2]
[318941158,1710458844834,155.0,0.00017687,2]
[318941159,1710458859863,450.97135314,0.00017687,2]
[318941160,1710458866840,155.0,0.00017687,2]
[318941161,1710458877877,450.73538068,0.00017687,2]
[318941162,1710458882829,155.0,0.00017687,2]
[318941163,1710458899886,604.88316269,0.00017687,2]
[318941164,1710458902519,3059.78849191,0.00017999,2]
[318941165,1710458902840,155.0,0.00017687,2]
[318941166,1710458910555,249.61449719,0.00017999,2]
[318941167,1710458911714,1393.69834859,0.00017999,2]
[318941168,1710458912319,444.62061618,0.00017999,2]
[318941169,1710458913396,155.0,0.00017999,2]
[318941170,1710458920464,1584.7842546,0.00017999,2]
[318941171,1710458922833,165.66463504,0.00017687,2]
[318941172,1710458928846,631.96,0.00017695,2]
[318941173,1710458930580,327.08,0.00017664,2]
[318941174,1710458943242,500.0,0.00017664,2]
[318941175,1710458950829,250.0,0.00018,2]
[318941176,1710458958146,556.0,0.00016468,2]
[318941177,1710458960966,627.92,0.0001583,2]
[318941178,1710458963506,23900.0,0.00017748,2]
[318941179,1710458968118,-528.93873067,0.00018,2]
[318941180,1710458968138,-627.92,0.00018094,2]
[318941181,1710458968158,-249.3496038,0.00018115,2]
[318941182,1710458968176,-1083.89176553,0.000182,2]
[318941183,1710458973061,926.57,0.0001777,2]
[318941184,1710458981205,1000.0,0.00017924,2]
[318941190,1710459001723,250.0,0.00017963,2]
[318941216,1710459031609,-1584.7842546,0.00018198,2]
[318941217,1710459031619,-6447.82825229,0.00018199,2]
[318941220,1710459031630,-684.71908266,0.00018199,2]
[318941224,1710459031717,-3316.64677374,0.00018199,2]
[318941225,1710459034026,-873.0967117,0.00018199,2]
[318941226,1710459034035,-582.87513447,0.000182,2]
[318941227,1710459034045,-57031.406,0.000182,2]
[318941228,1710459034054,-207.31395624,0.00018215,2]
[318941229,1710459034064,-1234.34264318,0.00018298,2]
[318941230,1710459034074,-200.645853,0.00018298,2]
[318941231,1710459034083,-522.01731839,0.00018298,2]
[318941232,1710459034092,-1052.16994629,0.00018298,2]
[318941233,1710459034102,-373.63860962,0.00018298,2]
[318941234,1710459034111,-752.69342618,0.00018298,2]
[318941235,1710459034121,-155.0,0.00018298,2]
[318941236,1710459034132,-444.30154788,0.00018298,2]
[318941237,1710459034141,-678.68319313,0.00018298,2]
[318941238,1710459034151,-301.6788967,0.00018298,2]
[318941239,1710459034160,-193.33196783,0.00018299,2]
[318941240,1710459034169,-3056.0570613,0.00018299,2]
[318941241,1710459034179,-100000.0,0.000183,2]
[318941242,1710459034189,-245000.0,0.000183,2]
[318941243,1710459034199,-207.31395623,0.00018313,2]
[318941244,1710459034208,-499.99,0.00018315,2]
[318941245,1710459034217,-426.183085,0.00018356,2]
[318941246,1710459034226,-234.1403,0.000184,2]
[318941247,1710459034235,-500.0,0.000184,2]
[318941248,1710459034245,-150.99,0.000184,2]
[318941249,1710459034254,-31191.98350782,0.00018401,2]
[318941250,1710459034263,-738.40265361,0.00018401,2]
[318941251,1710459034272,-207.31395623,0.00018411,2]
[318941252,1710459034282,-201.11684053,0.0001849,2]
[318941254,1710459034291,-773262.26897505,0.000185,2]
[318941256,1710459034301,-207.31395623,0.00018509,2]
[318941258,1710459034310,-150.0,0.00018548,2]
[318941259,1710459034319,-150.0,0.00018548,2]
[318941260,1710459034328,-178.2,0.00018548,2]
[318941261,1710459034338,-150.0,0.00018566,2]
[318941262,1710459034347,-150.0,0.00018724,2]
[318941264,1710459034357,-3221.4046,0.00018898,2]
[318941265,1710459034366,-5800.0,0.000189,2]
[318941266,1710459034375,-1957.76496756,0.000189,2]
[318941267,1710459034384,-1388.81794695,0.000189,2]
[318941268,1710459034394,-1725.02459209,0.000189,2]
[318941269,1710459034402,-720.32617222,0.000189,2]
[318941270,1710459034412,-221.68491392,0.000189,2]
[318941271,1710459034422,-426.0136837,0.000189,2]
[318941272,1710459034431,-171.856188,0.000189,3]
[318941273,1710459034440,-150.0,0.00018901,2]
[318941274,1710459034450,-584.57122463,0.00018921,2]
[318941275,1710459034458,-584.57122462,0.00018921,2]
[318941276,1710459034468,-800.0,0.00018959,2]
[318941277,1710459034478,-201.11684053,0.0001899,2]
[318941278,1710459034488,-201.11684053,0.0001899,2]
[318941279,1710459034498,-276.77268804,0.00018997,2]
[318941280,1710459034507,-12729.76383317,0.00018997,2]
[318941281,1710459034518,-775.25463802,0.00018997,2]
[318941282,1710459034527,-479.87634738,0.00018997,2]
[318941283,1710459034537,-4767.46569866,0.00018997,2]
[318941284,1710459034547,-192.15677615,0.00018997,2]
[318941285,1710459034556,-264.90420628,0.00018998,2]
[318941286,1710459034567,-2644.59242052,0.00018998,2]
[318941287,1710459034576,-222.84960389,0.00018998,2]
[318941288,1710459034586,-66660.11418865,0.00018998,2]
[318941289,1710459034597,-3678.43734357,0.00018998,2]
[318941290,1710459034608,-2044.36911953,0.00018999,2]
[318941291,1710459034617,-1059.21027823,0.00018999,2]
[318941292,1710459034626,-484.32182555,0.00018999,2]
[318941293,1710459034635,-97891.7503093,0.00018999,2]
[318941294,1710459034644,-150.0,0.00018999,2]
[318941295,1710459034654,-225.98359467,0.00019,3]
[318941296,1710459034665,-1646415.61410131,0.00019,2]
[318941297,1710459034674,-622453.49959029,0.00019,2]
[318941298,1710459034754,-307.29035117,0.00019,2]
[318941299,1710459035763,150.0,0.00017783,2]
[318941310,1710459037782,-207.31395623,0.00018606,2]
[318941311,1710459037792,-2028.56014164,0.00019,2]
[318941312,1710459037804,-1287.48825632,0.00019,2]
[318941313,1710459037815,-39793.05305917,0.00019,2]
[318941314,1710459037833,-1425.94447234,0.00019,2]
[318941315,1710459037845,-16393.34406496,0.00019,2]
[318941316,1710459037858,-58605.36540937,0.00019,2]
[318941317,1710459037869,-14665.0462,0.00019,2]
[318941318,1710459037880,-1220.20775906,0.00019,2]
[318941319,1710459037892,-406.46916604,0.00019,2]
[318941320,1710459037903,-723.348404,0.00019,2]
[318941321,1710459037915,-289.30814126,0.00019,2]
[318941322,1710459037927,-347.730252,0.00019,2]
[318941323,1710459037938,-1788.75648834,0.00019,2]
[318941324,1710459037951,-1745.55646344,0.00019,2]
[318941325,1710459037962,-469.63768121,0.00019,2]
[318941326,1710459037985,-9333.77030907,0.00019,2]
[318941327,1710459037996,-15725.20000025,0.00019,2]
[318941328,1710459038005,-3195.23258283,0.00019,2]
[318941330,1710459038015,-275.96458678,0.00019,2]
[318941332,1710459038027,-692.79472096,0.00019,2]
[318941334,1710459038039,-1735053.68604461,0.00019,2]
[318941335,1710459038050,-467.71965302,0.00019,2]
[318941336,1710459038807,-4006.19422774,0.00019,2]
[318941337,1710459038818,-4093.80577226,0.00019,2]
[318941338,1710459038831,-1900.0,0.00019,2]
[318941347,1710459040782,-1743.8600549,0.00019,2]
[318941350,1710459040793,-557.2843266,0.00019,2]
[318941352,1710459040804,-143224.30612491,0.00019,2]
[318941354,1710459040815,-429.63354504,0.00019,2]
[318941380,1710459041068,-522.81,0.00019,2]
[318941463,1710459042626,155.0,0.00017963,2]
[318941464,1710459042896,-207.31395623,0.00018704,2]
[318941465,1710459042906,-14630.22451819,0.00018999,2]
[318941466,1710459042917,-6199.43911996,0.00018999,2]
[318941467,1710459042927,-155.57109964,0.00018999,2]
[318941468,1710459042936,-155.45053938,0.00018999,2]
[318941469,1710459042947,-3946.93174574,0.00019,2]
[318941470,1710459042959,-4366.7507535,0.00019,2]
[318941483,1710459045876,-223.68806,0.0001881,2]
[318941484,1710459045886,-155.0,0.00018999,2]
[318941485,1710459045895,-437.5170205,0.00018999,2]
[318941486,1710459045905,-160.0,0.00018999,2]
[318941487,1710459045915,-155.22966242,0.00018999,2]
[318941488,1710459045925,-6003.16525707,0.00019,2]
[318941489,1710459046104,-214405.24473287,0.00019,2]
[318941490,1710459046226,-13198.3366805,0.00019,2]
[318941491,1710459046238,-394.47190609,0.00019,2]
[318941492,1710459046250,-4358.20007664,0.00019,2]
[318941493,1710459046340,-3029.67465015,0.00018999,2]
[318941494,1710459046350,-14364.83309353,0.00019,2]
[318941495,1710459079982,450.85336691,0.00017963,2]
[318941505,1710459199655,178.2,0.00018,2]
[318941506,1710459202300,193.91280198,0.00017944,2]
[318941507,1710459203331,200.0,0.00017526,2]
[318941508,1710459204261,5000.0,0.00017625,2]
[318941509,1710459207336,193.91280188,0.00017994,2]
[318941511,1710459210586,34971.16,0.00017569,2]
[318941513,1710459219491,300.0,0.00018,2]
[318941514,1710459236235,200.0,0.00017363,2]
[318941515,1710459263283,196.66,0.00017392,2]
[318941516,1710459265709,150.0,0.00018,2]
[318941518,1710459282663,383.3236,0.00017942,2]
[318941519,1710459285927,712.16,0.00017436,2]
[318941520,1710459316070,244.43466488,0.00016438,2]
[318941521,1710459323794,196.53,0.0001748,2]
[318941522,1710459336238,677.05,0.00017489,2]
[318941523,1710459352036,200.0,0.00017489,2]
[318941524,1710459366350,500.0,0.000175,2]
[318941525,1710459397884,200.0,0.00017482,2]
[318941526,1710459399720,6177.34,0.00017482,2]
[318941527,1710459410031,738.63,0.00015564,2]
[318941528,1710459410282,738.63,0.00017828,2]
[318941529,1710459412791,7179.1,0.00017471,2]
[318941530,1710459415730,3138.0,0.00017471,2]
[318941531,1710459525100,964.37,0.00017297,2]
[318941532,1710459555024,217.10285945,0.00017999,2]
[318941533,1710459563541,227.93,0.00017317,2]
[318941534,1710459573158,541.84948116,0.00017999,2]
[318941535,1710459575075,547.6760935,0.00017999,2]
[318941536,1710459587333,318.97,0.00017482,2]
[318941537,1710459587536,318.97,0.00017529,2]
[318941538,1710459588191,318.97,0.00017577,2]
[318941539,1710459588269,318.97,0.00017625,2]
[318941540,1710459588593,318.97,0.00017673,2]
[318941541,1710459588670,3029.67465015,0.00017999,2]
[318941542,1710459588837,318.97,0.00017721,2]
[318941543,1710459589062,318.97,0.00017769,2]
[318941544,1710459589479,318.97,0.00017817,2]
[318941545,1710459589690,318.97,0.00017865,2]
[318941546,1710459590110,318.97,0.00017913,2]
[318941547,1710459590344,318.97,0.00017961,2]
[318941548,1710459592783,150.0,0.00017332,2]
[318941549,1710459603121,150.0,0.00017317,2]
[318941550,1710459603334,150.0,0.00017317,2]
[318941551,1710459603595,150.0,0.00017317,2]
[318941552,1710459603784,150.0,0.00017317,2]
[318941553,1710459603966,150.0,0.00017317,2]
[318941554,1710459604354,150.0,0.00017317,2]
[318941555,1710459604529,150.0,0.00017317,2]
[318941556,1710459604728,150.0,0.00017317,2]
[318941557,1710459604909,150.0,0.00017317,2]
[318941558,1710459605196,150.0,0.00017317,2]
[318941559,1710459605344,150.0,0.00017317,2]
[318941560,1710459605482,150.0,0.00017317,2]
[318941561,1710459605696,150.0,0.00017317,2]
[318941562,1710459605900,150.0,0.00017317,2]
[318941563,1710459606072,150.0,0.00017317,2]
[318941564,1710459606267,150.0,0.00017317,2]
[318941565,1710459606450,150.0,0.00017317,2]
[318941566,1710459606634,245.175564,0.00017317,2]
[318941567,1710459654858,866.81,0.00017306,2]
[318941568,1710459658140,1941.41,0.00017309,2]
[318941569,1710459680918,1842.66,0.00017315,2]
[318941570,1710459703290,161.67,0.0001731,2]
[318941571,1710459727105,399.3,0.00017449,2]
[318941572,1710459752759,196.53,0.0001731,2]
[318941574,1710459773861,5192.2597,0.000179,2]
[318941576,1710459833304,178.2,0.000179,2]
[318941577,1710459861491,4117.89,0.00017243,2]
[318941578,1710459870260,664.76,0.00015325,2]
[318941579,1710459870491,664.76,0.00017589,2]
[318941580,1710459871202,840.0,0.00017243,2]
[318941581,1710460032545,151.09,0.00017332,2]
[318941582,1710460032763,151.09,0.00017382,2]
[318941583,1710460033065,151.09,0.00017433,2]
[318941584,1710460033247,151.09,0.00017483,2]
[318941585,1710460033456,151.09,0.00017533,2]
[318941586,1710460033673,151.09,0.00017583,2]
[318941587,1710460033908,151.09,0.00017633,2]
[318941588,1710460034134,151.09,0.00017683,2]
[318941589,1710460034162,-1584.7842546,0.00018008,2]
[318941590,1710460034182,-167.0,0.00018013,2]
[318941591,1710460034201,-150.0,0.00018027,2]
[318941592,1710460034223,-150.0,0.00018043,2]
[318941593,1710460034242,-11322.29082039,0.00018044,2]
[318941594,1710460034261,-193.91280188,0.00018045,2]
[318941595,1710460034500,-8543.20419105,0.00018045,2]
[318941596,1710460034519,-1468.33422092,0.00018049,2]
[318941597,1710460034537,-2760.54,0.00018049,2]
[318941598,1710460034557,-1000.0,0.00018057,2]
[318941599,1710460034576,-150.99,0.00018057,2]
[318941600,1710460034595,-361.59,0.00018057,2]
[318941601,1710460034614,-999.99,0.00018057,2]
[318941602,1710460034633,-9999.99,0.00018057,2]
[318941603,1710460034654,-34189.82397297,0.00018058,2]
[318941604,1710460034672,-169.92,0.00018068,2]
[318941605,1710460034703,-554.62,0.00018068,2]
[318941606,1710460034728,-1917.47,0.00018068,2]
[318941607,1710460034750,-11405.71,0.00018068,2]
[318941608,1710460034773,-150.99,0.00018068,2]
[318941609,1710460034793,-1901.07,0.00018068,2]
[318941610,1710460034816,-1193.2,0.00018068,2]
[318941611,1710460034841,-611.56,0.00018068,2]
[318941612,1710460034862,-533.648206,0.00018082,2]
[318941613,1710460034885,-205.36,0.00018088,2]
[318941614,1710460034905,-499.99,0.00018088,2]
[318941615,1710460034928,-179.09,0.00018088,2]
[318941616,1710460034949,-193.91280188,0.00018095,2]
[318941617,1710460034973,-193.91280188,0.00018145,2]
[318941618,1710460034994,-205.36,0.00018154,2]
[318941619,1710460035016,-193.91280188,0.00018196,2]
[318941620,1710460035037,-1000.0,0.000182,2]
[318941621,1710460035059,-205.36,0.00018221,2]
[318941622,1710460035080,-1000.0,0.00018239,2]
[318941623,1710460035101,-1884.24918687,0.00018245,2]
[318941624,1710460035337,151.09,0.00017734,2]
[318941625,1710460035409,151.09,0.00017784,2]
[318941626,1710460035471,151.09,0.00017834,2]
[318941627,1710460035640,151.09,0.00017884,2]
[318941628,1710460035692,151.09,0.00017934,2]
[318941629,1710460035746,151.09,0.00017984,2]
[318941630,1710460117241,286962.0,0.00017973,2]
[318941631,1710460149574,161.67,0.00017535,2]
[318941632,1710460217960,433.4,0.00017464,2]
[318941633,1710460220784,480.283386,0.00017534,2]
[318941640,1710460231797,-151.09,0.00018035,2]
[318941641,1710460231806,-151.09,0.00018085,2]
[318941642,1710460231816,-151.09,0.00018135,2]
[318941643,1710460231825,-151.09,0.00018185,2]
[318941644,1710460231835,-159.69289576,0.00018187,2]
[318941645,1710460231844,-159.69289566,0.00018231,2]
[318941646,1710460231853,-151.09,0.00018235,2]
[318941647,1710460231863,-1000.0,0.00018239,2]
[318941648,1710460231872,-658.84420858,0.00018245,2]
[318941649,1710460231886,-1341.15579142,0.00018245,2]
[318941650,1710460231895,-200.0,0.00018245,2]
[318941651,1710460231905,-159.69289566,0.00018275,2]
[318941652,1710460231915,-205.36,0.00018287,2]
[318941653,1710460231926,-431.145,0.0001829,2]
[318941654,1710460231936,-150.0,0.00018295,2]
[318941655,1710460231945,-150.99,0.00018296,2]
[318941656,1710460231954,-1492.12631292,0.00018296,2]
[318941657,1710460231966,-5068.92823684,0.00018296,2]
[318941658,1710460231996,-6046.51731586,0.00018296,2]
[318941659,1710460232098,-17426.01813438,0.00018296,2]
[318941660,1710460232108,-499.99,0.00018296,2]
[318941661,1710460232117,-159.69289566,0.0001832,2]
[318941662,1710460232127,-186.27333353,0.00018337,2]
[318941663,1710460232137,-1101.37573076,0.00018337,2]
[318941664,1710460232146,-155.30488969,0.00018337,2]
[318941665,1710460232155,-2561.71988048,0.00018337,2]
[318941666,1710460232166,-202.02943975,0.00018338,2]
[318941667,1710460232175,-14789.06,0.00018338,2]
[318941668,1710460232185,-205.36,0.00018354,2]
[318941669,1710460232195,-480.283386,0.00018356,2]
[318941670,1710460232204,-159.69289566,0.00018364,2]
[318941671,1710460232214,-745.37566344,0.00018389,2]
[318941672,1710460232224,-159.69289566,0.00018408,2]
[318941673,1710460232234,-205.36,0.00018421,2]
[318941674,1710460232244,-2000.0,0.00018427,2]
[318941675,1710460232253,-200.0,0.00018427,2]
[318941676,1710460232263,-178.2,0.00018448,2]
[318941677,1710460232272,-159.69289566,0.00018452,2]
[318941678,1710460232282,-205.36,0.00018487,2]
[318941679,1710460232291,-159.69289566,0.00018496,2]
[318941680,1710460232300,-47532.03109477,0.000185,2]
[318941681,1710460232312,-1768.12564682,0.000185,2]
[318941682,1710460232324,-54575.49913386,0.000185,2]
[318941683,1710460232333,-576.4333765,0.00018522,2]
[318941684,1710460232342,-335.85846834,0.00018522,2]
[318941685,1710460232351,-171.80070644,0.00018523,2]
[318941686,1710460232361,-635.61522059,0.00018523,2]
[318941687,1710460232370,-159.69289566,0.00018541,2]
[318941688,1710460232381,-150.0,0.00018548,2]
[318941689,1710460232390,-205.36,0.00018554,2]
[318941690,1710460232399,-159.69289566,0.00018585,2]
[318941691,1710460232408,-2500.0,0.000186,2]
[318941692,1710460232418,-1187.91462598,0.00018612,2]
[318941693,1710460232427,-200.0,0.00018612,2]
[318941694,1710460232437,-205.36,0.00018621,2]
[318941695,1710460232446,-159.69289566,0.00018629,2]
[318941696,1710460232455,-1710.42932833,0.00018654,2]
[318941697,1710460232465,-159.69289566,0.00018673,2]
[318941698,1710460232474,-174.06,0.00018684,2]
[318941699,1710460232484,-205.36,0.00018687,2]
[318941700,1710460232494,-786.24,0.0001871,2]
[318941701,1710460232503,-304.2399,0.0001871,2]
[318941702,1710460232512,-133670.1781,0.0001871,2]
[318941703,1710460232522,-168.5425,0.0001871,2]
[318941704,1710460232532,-4028.0637,0.0001871,2]
[318941705,1710460232541,-205.36,0.00018754,2]
[318941706,1710460232550,-200.0,0.00018798,2]
[318941707,1710460232560,-2500.0,0.000188,2]
[318941708,1710460232569,-185.07450796,0.000188,2]
[318941709,1710460232578,-678.68319313,0.00018808,2]
[318941710,1710460232588,-1041.12680687,0.00018809,2]
[318941711,1710460232597,-3000.0,0.0001881,2]
[318941712,1710460232606,-3000.0,0.0001881,2]
[318941713,1710460232616,-3000.0,0.0001881,2]
[318941714,1710460232625,-3000.0,0.0001881,2]
[318941715,1710460232635,-3000.0,0.0001881,2]
[318941716,1710460232644,-3000.0,0.0001881,2]
[318941717,1710460232653,-142088.82122139,0.0001882,2]
[318941718,1710460232663,-205.36,0.0001882,2]
[318941719,1710460232672,-200.0,0.00018848,2]
[318941720,1710460232682,-800.0,0.00018848,2]
[318941721,1710460232692,-500.0,0.00018848,2]
[318941722,1710460232701,-9908.95,0.00018882,2]
[318941723,1710460232711,-205.36,0.00018887,2]
[318941724,1710460232720,-191.44086947,0.0001889,2]
[318941725,1710460232730,-100000.0,0.000189,2]
[318941726,1710460232739,-211.0,0.000189,2]
[318941727,1710460232749,-133270.87621614,0.000189,2]
[318941728,1710460232760,-93284.53744208,0.000189,2]
[318941729,1710460232772,-14122.27516317,0.000189,2]
[318941730,1710460232783,-268.16578071,0.000189,2]
[318941731,1710460232811,-4054.1453979,0.000189,2]
[318941732,1710460232820,-5806.4553,0.000189,2]
[318941733,1710460232829,-2741.6378,0.000189,2]
[318941734,1710460232839,-12255.95918559,0.000189,2]
[318941735,1710460232850,-928.53687171,0.000189,2]
[318941736,1710460232899,-368.59389449,0.000189,2]
[318941737,1710460232911,-13196.477571,0.000189,2]
[318941738,1710460232923,-3088.66824639,0.000189,2]
[318941739,1710460232933,-171.91766915,0.000189,2]
[318941740,1710460232942,-171.85618799,0.000189,3]
[318941741,1710460232951,-284.00912248,0.000189,2]
[318941742,1710460232961,-205.36,0.00018954,2]
[318941743,1710460232970,-200.0,0.00018986,2]
[318941744,1710460232980,-2396.0,0.00018986,2]
[318941745,1710460232990,-3969.0,0.00018986,2]
[318941746,1710460233000,-191.44086947,0.0001899,2]
[318941747,1710460233010,-223187.963037,0.00018994,2]
[318941748,1710460233019,-8077.6065096,0.00018994,2]
[318941749,1710460233029,-178.2,0.00018996,2]
[318941750,1710460233038,-386.58303879,0.00018997,2]
[318941751,1710460233048,-230.25395886,0.00018998,2]
[318941752,1710460233058,-202.20706266,0.00018998,2]
[318941753,1710460233067,-373.1547634,0.00018998,2]
[318941754,1710460233077,-1057.72421204,0.00018998,2]
[318941755,1710460233087,-2047.2356825,0.00018998,2]
[318941756,1710460233096,-9755.94,0.00018999,2]
[318941757,1710460233105,-3094.8091146,0.00018999,2]
[318941758,1710460233115,-936.92544064,0.00018999,2]
[318941759,1710460233124,-238.17141757,0.00018999,2]
[318941760,1710460233135,-294.03208259,0.00018999,2]
[318941761,1710460233144,-264.42734762,0.00018999,2]
[318941762,1710460233154,-296.3689834,0.00018999,2]
[318941763,1710460233164,-306.798665,0.00018999,2]
[318941764,1710460233174,-155.48352699,0.00018999,2]
[318941765,1710460233183,-971.23425216,0.00018999,2]
[318941766,1710460233193,-359.39127677,0.00018999,2]
[318941767,1710460233205,-198.98802626,0.00018999,2]
[318941768,1710460233215,-658.51542217,0.00018999,2]
[318941769,1710460233225,-165649.7340839,0.00019,2]
[318941770,1710460233237,-1974.8225,0.00019,2]
[318941771,1710460233248,-1667.15976627,0.00019,2]
[318941772,1710460233260,-301.44505381,0.00019,2]
[318941773,1710460233271,-491.01788678,0.00019,2]
[318941774,1710460233282,-272.72700117,0.00019,2]
[318941775,1710460233298,-2925.0,0.00019,2]
[318941776,1710460233309,-1250.0,0.00019,2]
[318941782,1710460237822,-159.69289566,0.00018717,2]
[318941783,1710460237832,-159.69289566,0.00018761,2]
[318941784,1710460237842,-733.62997698,0.000189,2]
[318941785,1710460237854,-416.38641774,0.000189,2]
[318941786,1710460237864,-828.2936473,0.00019,2]
[318941806,1710460238345,-140946.95993217,0.00019,2]
[318941807,1710460238780,-402.8725,0.00019,2]
[318941865,1710460240981,-7916.39543125,0.00019,2]
[318941866,1710460240993,-3483.1642992,0.00019,2]
[318941867,1710460241037,-273.33258995,0.00019,2]
[318941868,1710460241049,-519.15823768,0.00019,2]
[318941872,1710460242877,-159.69289566,0.00018806,2]
[318941873,1710460242890,-416.60482466,0.00019,2]
[318941874,1710460242901,-270.43722,0.00019,2]
[318941875,1710460242978,-41846.69314902,0.00019,2]
[318941876,1710460242989,-470.90830768,0.00019,2]
[318941877,1710460243039,-298.898611,0.00019,2]
[318941878,1710460243136,-7.15857885,0.00019,2]
[318941879,1710460243149,-548.58967953,0.00019,2]
[318941890,1710460246267,-1584.37283396,0.00018999,2]
[318941891,1710460246276,-1414.88526228,0.00019,2]
[318941892,1710460246435,-3566.5434888,0.00018837,2]
[318941903,1710460371820,642.94,0.00016133,2]
[318941904,1710460383747,666.754628,0.00017956,2]
[318941906,1710460434014,10782.46280292,0.00012,2]
[318941908,1710460448644,250.0,0.00017894,2]
[318941909,1710460468071,178.2,0.00017609,2]
[318941910,1710460481825,500.0,0.00017715,2]
[318941911,1710460484229,150.0,0.0001761,2]
[318941912,1710460491567,246.63710048,0.00023,30]
[318941913,1710460499274,170.43,0.00017683,2]
[318941914,1710460628636,500.0,0.00023,60]
[318941915,1710460646283,3573.68,0.00017658,2]
[318941916,1710460682761,395.51,0.00017658,2]
[318941917,1710460697838,224.33,0.00017679,2]
[318941918,1710460730536,200.0,0.00017679,2]
[318941919,1710460739437,2000.0,0.0002301,30]
[318941920,1710460771557,672.0,0.00017679,2]
[318941921,1710460791886,544.86,0.00017701,2]
[318941922,1710460797418,610.79,0.00015811,2]